Workbook

Sheet manual
A1: Description:
A2: This excel-tool calculates the enthalpy curves from your heatflow measurements. Furthermore it exports your data as txt-file in the "right" format.
A3: The calculation includes "zero-line" correction and subtraction of blank measurements.
A4: Furthermore heating and cooling measurements are splitted automatically.
A6: Important conditions for calculations:
A7: Your data must be available in the right format and in the right unit:
A9: Time | B9: Temperature | C9: Heatflow
A10: s | B10: °C | C10: mW
A12: The dataset should contain the following sections:
A13: isotherm - cooling ramp - isotherm - heating ramp -isotherm
A15: The dataset should contain only one cycle (cooling + heating).
A16: The dataset should not contain special markers.
A17: The dataset should be continuous.
A19: Insert datas:
A20: Copy and Paste your data in sheet "data"; sample data at Cell "A16", blank data at Cell "E16"
A21: Don't delete cells in this area!!!
A23: Furthermore you have to specify "sample mass", "heating rate", "reference temperature" and time of "isotherm".
A24: Enthalpy curve is set to 0 at reference temperature. Reference temperature has to be included in your measurement range.
A25: In some cases temperature signal shows strong noise. For selecting the isotherm sections it would be neccessary to smooth the temperature curve. Smoothing don't affect the final calculation.
A26: The greater the "smooth factor" (natural number) the greater is smoothed.
A28: Sample Mass | B28: 10.49 | C28: mg
A29: Heating Rate | B29: 2 | C29: K/min
A30: Reference Temperature | B30: 38 | C30: °C
A31: Isotherm | B31: 3 | C31: min
A32: Smooth | B32: 1
A34: For the generation of export-filename you can specify some properties (don't use special characters and spaces)
A36: Institution | B36: INSTITUTION | C36: e.g. Fraunhofer_ISE
A37: Material | B37: PCM | C37: e.g. Parafol_18-97
A38: Sample No. | B38: X
A39: Cycle No. | B39: Y
A42: Calculations:
A43: Activate the macro.
A44: Click the "update"-button.
A45: The big diagrams show the temperature profil and heatflow curve. The blue dots determines the sections ramps and isotherms.
A46: The smaller diagrams below show a zoom-in for each isotherm.
A47: If everything is ok you can go to sheet "export"
A48: If not, check your inputs in the green colored fields. If they are right you can increase the "smooth factor" in Cell "B9". Click the "update"-button and check the blue dots in diagrams.
A49: If smoohting isn't successful use the scrollbars below the smaller diagramms for fine tuning.
A51: Export:
A52: Click the "update"-button.
A53: The diagram shows the final entalpy curves.
A55: Click the "export"-button.
A56: You can check or change the export-filename.
A57: export-file are saved as txt-file in the folder of your excel-tool.

Sheet data
A1: Institution | B1: Institute | S1: FALSE | AA1: Sample Calculations | AE1: =COUNT(AD16:AD1048576) -> 0 | AF1: =COUNT(AH16:AH1048576) -> 0
A2: Material | B2: PCM | F2: Sample | G2: Time | H2: Index | I2: heatflow | J2: Heatflow_ext. | K2: Temperatur | S2: 50
A3: Sample No. | B3: x | F3: t1 | G3: =MAX(OFFSET(AC$15,1,0,MATCH(MIN($AB$16:$AB$100000),$AB$16:$AB$100000)))-50+S3 ->  | H3: =MATCH(G3,A$16:A$100000) ->  | I3: =OFFSET($Z$15,H3,0) ->  | J3: =I3 ->  | K3: =OFFSET($B$15,H3,0) ->  | S3: 52
A4: Cycle No. | B4: y | F4: t2 | G4: =MIN(OFFSET($AC$15,MATCH($G$3+($AB$5-$AB$4)/$B$6*60*0.95,$A$16:$A$1048576),0,100000))-50+S4 ->  | H4: =MATCH(G4,A$16:A$100000) ->  | I4: =OFFSET($Z$15,H4,0) ->  | J4: =AVERAGE(OFFSET($Z$15,ROUND(H5-(H5-H4)/4,0),0,ROUND((H5-H4)/4,0))) ->  | K4: =OFFSET($B$15,H4,0) ->  | S4: 64 | AA4: Tmin | AB4: =MIN(B16:B1048576) -> 0 | AC4: °C
A5: Sample Mass | B5: 10 | C5: mg | F5: t3 | G5: =MAX(OFFSET($AC$15,1,0,MATCH(MIN(OFFSET($AB$15,MATCH($G$4+$B$8*60*0.75,$A$16:$A$1048576),0,10000)),$A$16:$A$1048576)))-50+S5 ->  | H5: =MATCH(G5,A$16:A$100000) ->  | I5: =OFFSET($Z$15,H5,0) ->  | J5: =I5 ->  | S5: 28 | AA5: Tmax | AB5: =MAX(B16:B1048576) -> 0 | AC5: °C
A6: Heating Rate | B6: 1 | C6: K/min | F6: t4 | G6: =MAX(OFFSET($AB$15,1,0,MATCH(MIN(OFFSET($AC$15,MATCH($G$5+($AB$5-$AB$4)/$B$6*60*0.95,$A$16:$A$1048576),0,10000)),$A$16:$A$1048576)))-50+S6 ->  | H6: =MATCH(G6,A$16:A$100000) ->  | I6: =OFFSET($Z$15,H6,0) ->  | J6: =AVERAGE(OFFSET($Z$15,ROUND(H7-(H7-H6)/4,0),0,ROUND((H7-H6)/4,0))) ->  | S6: 50
A7: Reference Temperature | B7: 35 | C7: °C | F7: t5 | G7: =MAX($AC$16:$AC$1048576)-50+S7 -> -7 | H7: =MATCH(G7,A$16:A$100000) ->  | I7: =OFFSET($Z$15,H7,0) ->  | J7: =I7 ->  | S7: 43
A8: Isotherm | B8: 5 | C8: min
A9: Smooth | B9: 1
AF11: H(0): | AJ11: H(0):
A12: Sample | E12: Blank | AC12: Limit | AD12: cooling | AF12: =TREND(OFFSET($AF$15,MIN(AG16:AG1048576),0,MAX(AG16:AG1048576)-MIN(AG16:AG1048576)),OFFSET($B$15,MIN(AG16:AG1048576),0,MAX(AG16:AG1048576)-MIN(AG16:AG1048576)),$B$7) ->  | AH12: heating | AJ12: =TREND(OFFSET($AJ$15,MIN(AK16:AK1048576),0,MAX(AK16:AK1048576)-MIN(AK16:AK1048576)),OFFSET($B$15,MIN(AK16:AK1048576),0,MAX(AK16:AK1048576)-MIN(AK16:AK1048576)),$B$7) -> 
AC13: 0.0002
A14: Time | B14: Temperature_Sample | C14: Heatflow | E14: Time | F14: Temperature_Blank | G14: Heatflow | AA14: Deviation Temperature | AB14: Select dynamic part | AC14: select isotherm part | AD14: Zeroline | AE14: (Sample-Blank-Zeroline) | AF14: Enthalpie | AG14: Temp | AH14: Zeroline | AI14: (Sample-Zeroline)-(Blank-Zeroline) | AJ14: Enthalpie | AK14: Temp
A15: s | B15: °C | C15: mW | E15: s | F15: °C | G15: mW
Z16: =IF($S$1,C16-G16,C16) -> 0 | AA16: =IFERROR(SLOPE(OFFSET(B16,-ROUND($B$9,0),0,1+2*ROUND($B$9,0)),OFFSET(A16,-ROUND($B$9,0),0,1+2*ROUND($B$9,0))),"") ->  | AB16: =IFERROR(IF(AND(ABS(AA16)>$B$6/60*0.95,A16>$B$8*60*0.95),A16,""),"") ->  | AC16: =IFERROR(IF(AND(ABS(AA16)<AC$13,ABS(AA16)>=0,OR(B16>AB$5-2,B16<AB$4+2)),A16,""),"") ->  | AD16: =IF(AND(A16>=$G$3,A16<=$G$4),$I$3+($J$4-$I$3)/($G$4-$G$3)*(A16-$G$3),"") ->  | AE16: =IF(AD16="",,$Z16-AD16) ->  | AF16: =AF15-($A17-$A16)*AE16/$B$5 ->  | AG16: =IF(AND(NOT(AD16=""),B16>$B$7-1,B16<$B$7+1),ROW(A16)-ROW($K$16),"") ->  | AH16: =IF(AND(A16>=$G$5,A16<=$G$6),$I$5+($J$6-$I$5)/($G$6-$G$5)*(A16-$G$5),"") ->  | AI16: =IF(AH16="",,$Z16-AH16) ->  | AJ16: =AJ15-($A17-$A16)*AI16/$B$5 ->  | AK16: =IF(AND(NOT(AH16=""),B16>$B$7-1,B16<$B$7+1),ROW(A16)-ROW($K$16),"") -> 

Sheet export
B1: =IF(data!H7-data!H5>data!H5-data!H3,data!H7-data!H5,data!H5-data!H3) ->  | D1: =IF(OR(AND(ABS(MAX(data!AE16:AE1048576))>ABS(MIN(data!AE16:AE1048576)),export!A2="Cooling"),AND(ABS(MAX(data!AE16:AE1048576))<ABS(MIN(data!AE16:AE1048576)),export!A2="Heating")),1,-1) ->  | E1: =IF(OR(AND(ABS(MAX(data!AI16:AI1048576))>ABS(MIN(data!AI16:AI1048576)),export!F2="Cooling"),AND(ABS(MAX(data!AI16:AI1048576))<ABS(MIN(data!AI16:AI1048576)),export!F2="Heating")),1,-1) ->  | N1: =COUNT(A5:A1048576) -> 0 | O1: =COUNT(F5:F1048576) -> 0
A2: =IF(SLOPE(B5:B1048576,A5:A1048576)>0,"Heating","Cooling") ->  | F2: =IF(SLOPE(G5:G1048576,F5:F1048576)>0,"Heating","Cooling") ->  | N2: =data!B1 -> Institute
A3: Time | B3: Temperature | C3: Heatflow | D3: Enthalpy | F3: Time | G3: Temperature | H3: Heatflow | I3: Enthalpy | N3: =data!B2 -> PCM
A4: s | B4: °C | C4: mW/mg | D4: J/g | F4: s | G4: °C | H4: mW/mg | I4: J/g | N4: =data!B3 -> x
A5: =IF(ROW(data!A15)-ROW(data!$A$15)<data!$H$4-data!$H$3,ROUND(OFFSET(data!A15,data!$H$3,0)-data!$G$3,4),"") ->  | B5: =IF(ROW(data!B15)-ROW(data!$A$15)<data!$H$4-data!$H$3,ROUND(OFFSET(data!B15,data!$H$3,0),4),"") ->  | C5: =IF(ROW(data!C15)-ROW(data!$A$15)<data!$H$4-data!$H$3,ROUND(OFFSET(data!AE15,data!$H$3,0)/data!$B$5*$D$1,6),"") ->  | D5: =IF(ROW(data!D15)-ROW(data!$A$15)<data!$H$4-data!$H$3,ROUND(OFFSET(data!AF15,data!$H$3,0)-data!$AF$12,4)*$D$1,"") ->  | F5: =IF(ROW(data!A15)-ROW(data!$A$15)<data!$H$6-data!$H$5,ROUND(OFFSET(data!A15,data!$H$5,0)-data!$G$5,2),"") ->  | G5: =IF(ROW(data!B15)-ROW(data!$A$15)<data!$H$6-data!$H$5,ROUND(OFFSET(data!B15,data!$H$5,0),2),"") ->  | H5: =IF(ROW(data!C15)-ROW(data!$A$15)<data!$H$6-data!$H$5,ROUND(OFFSET(data!AI15,data!$H$5,0)/data!$B$5*$E$1,6),"") ->  | I5: =IF(ROW(data!D15)-ROW(data!$A$15)<data!$H$6-data!$H$5,ROUND(OFFSET(data!AJ15,data!$H$5,0)-data!$AJ$12,4)*$E$1,"") ->  | N5: =data!B4 -> y

Sheet Tabelle1
A1: 3230.43 | B1: 1.45027 | C1: 0.73464 | D1: =A1-$A$1 -> 0
A2: 3231.33 | B2: 1.37573 | C2: 0.73413 | D2: =A2-$A$1 -> 0.9
A3: 3232.83 | B3: 1.25069 | C3: 0.73332 | D3: 2.4
A4: 3234.2298 | B4: 1.13368 | C4: 0.73258 | D4: 3.7998
A5: 3235.6302 | B5: 1.01689 | C5: 0.73183 | D5: 5.2002
A6: 3237.03 | B6: 0.90018 | C6: 0.73109 | D6: 6.6
A7: 3238.53 | B7: 0.77544 | C7: 0.73028 | D7: 8.1
A8: 3240.03 | B8: 0.65056 | C8: 0.72955 | D8: 9.6
A9: 3241.4298 | B9: 0.53468 | C9: 0.72968 | D9: 10.9998
A10: 3242.8302 | B10: 0.42723 | C10: 0.74382 | D10: 12.4002
A11: 3244.23 | B11: 0.34075 | C11: 0.76973 | D11: 13.8
A12: 3245.73 | B12: 0.27143 | C12: 0.77806 | D12: 15.3
A13: 3247.23 | B13: 0.21732 | C13: 0.74685 | D13: 16.8
A14: 3248.6292 | B14: 0.17599 | C14: 0.66218 | D14: 18.1992
A15: 3250.0296 | B15: 0.14196 | C15: 0.58928 | D15: 19.5996
A16: 3251.43 | B16: 0.11453 | C16: 0.51555 | D16: 21
A17: 3252.8292 | B17: 0.09214 | C17: 0.44631 | D17: 22.3992
A18: 3254.3292 | B18: 0.0727 | C18: 0.37479 | D18: 23.8992
A19: 3255.8292 | B19: 0.05682 | C19: 0.31142 | D19: 25.3992
A20: 3257.2296 | B20: 0.04484 | C20: 0.25682 | D20: 26.7996
A21: 3258.63 | B21: 0.03528 | C21: 0.2121 | D21: 28.2
A22: 3260.0298 | B22: 0.02686 | C22: 0.17106 | D22: 29.5998
A23: 3261.5298 | B23: 0.01928 | C23: 0.13316 | D23: 31.0998
A24: 3263.0304 | B24: 0.01339 | C24: 0.1016 | D24: 32.6004
A25: 3264.4302 | B25: 0.00832 | C25: 0.07907 | D25: 34.0002
A26: 3265.83 | B26: 0.00435 | C26: 0.0586 | D26: 35.4
A27: 3267.2298 | B27: 0.000927703 | C27: 0.04165 | D27: 36.7998
A28: 3268.7298 | B28: -0.00231 | C28: 0.02599 | D28: 38.2998
A29: 3270.2298 | B29: -0.00549 | C29: 0.01511 | D29: 39.7998
A30: 3271.6302 | B30: -0.00745 | C30: 0.00603 | D30: 41.2002
A31: 3273.03 | B31: -0.00968 | C31: -0.00075735 | D31: 42.6
A32: 3274.4298 | B32: -0.0108 | C32: -0.00712 | D32: 43.9998
A33: 3275.8302 | B33: -0.012 | C33: -0.01271 | D33: 45.4002
A34: 3277.3296 | B34: -0.01372 | C34: -0.01605 | D34: 46.8996
A35: 3278.8302 | B35: -0.01522 | C35: -0.01899 | D35: 48.4002
A36: 3280.23 | B36: -0.01567 | C36: -0.02156 | D36: 49.8
A37: 3281.6304 | B37: -0.01632 | C37: -0.02419 | D37: 51.2004
A38: 3283.0296 | B38: -0.0173 | C38: -0.02668 | D38: 52.5996
A39: 3284.5296 | B39: -0.01829 | C39: -0.02926 | D39: 54.0996
A40: 3286.0296 | B40: -0.01908 | C40: -0.03178 | D40: 55.5996
A41: 3287.43 | B41: -0.01937 | C41: -0.03421 | D41: 57
A42: 3288.8292 | B42: -0.01999 | C42: -0.0364 | D42: 58.3992
A43: 3290.2302 | B43: -0.02092 | C43: -0.03853 | D43: 59.8002
A44: 3291.7302 | B44: -0.02135 | C44: -0.04079 | D44: 61.3002
A45: 3293.2296 | B45: -0.0216 | C45: -0.04286 | D45: 62.7996
A46: 3294.63 | B46: -0.02187 | C46: -0.04475 | D46: 64.2
A47: 3296.0298 | B47: -0.0222 | C47: -0.04661 | D47: 65.5998
A48: 3297.4302 | B48: -0.02282 | C48: -0.04826 | D48: 67.0002
A49: 3298.83 | B49: -0.02249 | C49: -0.04988 | D49: 68.4
A50: 3300.33 | B50: -0.02341 | C50: -0.05154 | D50: 69.9
A51: 3301.83 | B51: -0.02361 | C51: -0.05299 | D51: 71.4
A52: 3303.2298 | B52: -0.02385 | C52: -0.05428 | D52: 72.7998
A53: 3304.6302 | B53: -0.02404 | C53: -0.05546 | D53: 74.2002
A54: 3306.03 | B54: -0.02406 | C54: -0.05662 | D54: 75.6
A55: 3307.53 | B55: -0.02434 | C55: -0.05771 | D55: 77.1
A56: 3309.03 | B56: -0.0251 | C56: -0.05872 | D56: 78.6
A57: 3310.4298 | B57: -0.02521 | C57: -0.05962 | D57: 79.9998
A58: 3311.8302 | B58: -0.02487 | C58: -0.0605 | D58: 81.4002
A59: 3313.23 | B59: -0.02516 | C59: -0.06126 | D59: 82.8
A60: 3314.73 | B60: -0.0253 | C60: -0.06201 | D60: 84.3
A61: 3316.23 | B61: -0.02551 | C61: -0.06275 | D61: 85.8
A62: 3317.6304 | B62: -0.02525 | C62: -0.06344 | D62: 87.2004
A63: 3319.0296 | B63: -0.02546 | C63: -0.06394 | D63: 88.5996
A64: 3320.43 | B64: -0.02536 | C64: -0.06456 | D64: 90
A65: 3321.8292 | B65: -0.02526 | C65: -0.06517 | D65: 91.3992
A66: 3323.3292 | B66: -0.02572 | C66: -0.06575 | D66: =A66-$A$1 -> 92.8992
A67: 3324.8292 | B67: -0.0257 | C67: -0.06626 | D67: 94.3992
A68: 3326.2296 | B68: -0.02558 | C68: -0.06666 | D68: 95.7996
A69: 3327.63 | B69: -0.02581 | C69: -0.06704 | D69: 97.2
A70: 3329.0298 | B70: -0.02601 | C70: -0.06741 | D70: 98.5998
A71: 3330.5304 | B71: -0.02596 | C71: -0.06775 | D71: 100.1004
A72: 3332.0298 | B72: -0.02588 | C72: -0.06806 | D72: 101.5998
A73: 3333.4302 | B73: -0.02593 | C73: -0.06836 | D73: 103.0002
A74: 3334.83 | B74: -0.02621 | C74: -0.06868 | D74: 104.4
A75: 3336.2298 | B75: -0.02659 | C75: -0.06891 | D75: 105.7998
A76: 3337.7298 | B76: -0.02617 | C76: -0.0691 | D76: 107.2998
A77: 3339.2298 | B77: -0.02639 | C77: -0.06931 | D77: 108.7998
A78: 3340.6302 | B78: -0.02645 | C78: -0.06955 | D78: 110.2002
A79: 3342.03 | B79: -0.02624 | C79: -0.06977 | D79: 111.6
A80: 3343.4298 | B80: -0.02633 | C80: -0.06995 | D80: 112.9998
A81: 3344.8302 | B81: -0.02614 | C81: -0.07015 | D81: 114.4002
A82: 3346.3302 | B82: -0.02672 | C82: -0.07037 | D82: 115.9002
A83: 3347.8302 | B83: -0.02636 | C83: -0.07048 | D83: 117.4002
A84: 3349.23 | B84: -0.02653 | C84: -0.07064 | D84: 118.8
A85: 3350.6304 | B85: -0.02661 | C85: -0.07079 | D85: 120.2004
A86: 3352.0296 | B86: -0.02678 | C86: -0.07092 | D86: 121.5996
A87: 3353.5296 | B87: -0.02694 | C87: -0.07107 | D87: 123.0996
A88: 3355.0296 | B88: -0.02681 | C88: -0.07124 | D88: 124.5996
A89: 3356.43 | B89: -0.02722 | C89: -0.07135 | D89: 126
A90: 3357.8292 | B90: -0.02665 | C90: -0.07155 | D90: 127.3992
A91: 3359.2302 | B91: -0.02668 | C91: -0.07173 | D91: 128.8002
A92: 3360.7296 | B92: -0.02693 | C92: -0.07185 | D92: 130.2996
A93: 3362.2296 | B93: -0.02707 | C93: -0.07201 | D93: 131.7996
A94: 3363.63 | B94: -0.02679 | C94: -0.07218 | D94: 133.2
A95: 3365.0298 | B95: -0.02706 | C95: -0.07231 | D95: 134.5998
A96: 3366.4302 | B96: -0.02746 | C96: -0.07244 | D96: 136.0002
A97: 3367.83 | B97: -0.02695 | C97: -0.07253 | D97: 137.4
A98: 3369.33 | B98: -0.02684 | C98: -0.07272 | D98: 138.9
A99: 3370.83 | B99: -0.02709 | C99: -0.07279 | D99: 140.4
A100: 3372.2298 | B100: -0.02724 | C100: -0.07285 | D100: 141.7998
A101: 3373.6302 | B101: -0.02726 | C101: -0.07292 | D101: 143.2002
A102: 3375.03 | B102: -0.02718 | C102: -0.07293 | D102: 144.6
A103: 3376.53 | B103: -0.02772 | C103: -0.07308 | D103: 146.1
A104: 3378.03 | B104: -0.02747 | C104: -0.07313 | D104: 147.6
A105: 3379.4298 | B105: -0.02732 | C105: -0.07317 | D105: 148.9998
A106: 3380.8302 | B106: -0.02696 | C106: -0.07338 | D106: 150.4002
A107: 3382.23 | B107: -0.02739 | C107: -0.07355 | D107: 151.8
A108: 3383.73 | B108: -0.02751 | C108: -0.07371 | D108: 153.3
A109: 3385.23 | B109: -0.02738 | C109: -0.07387 | D109: 154.8
A110: 3386.6304 | B110: -0.02749 | C110: -0.07396 | D110: 156.2004
A111: 3388.0296 | B111: -0.02751 | C111: -0.07408 | D111: 157.5996
A112: 3389.43 | B112: -0.02752 | C112: -0.0743 | D112: 159
A113: 3390.8292 | B113: -0.02735 | C113: -0.07437 | D113: 160.3992
A114: 3392.3292 | B114: -0.02738 | C114: -0.07454 | D114: 161.8992
A115: 3393.8292 | B115: -0.02706 | C115: -0.07463 | D115: 163.3992
A116: 3395.2302 | B116: -0.02777 | C116: -0.07473 | D116: 164.8002
A117: 3396.63 | B117: -0.02807 | C117: -0.07474 | D117: 166.2
A118: 3398.0304 | B118: -0.02734 | C118: -0.07473 | D118: 167.6004
A119: 3399.5298 | B119: -0.02735 | C119: -0.07476 | D119: 169.0998
A120: 3401.0298 | B120: -0.02773 | C120: -0.07478 | D120: 170.5998
A121: 3402.4302 | B121: -0.02807 | C121: -0.0747 | D121: 172.0002
A122: 3403.83 | B122: -0.02775 | C122: -0.07463 | D122: 173.4
A123: 3405.2298 | B123: -0.02778 | C123: -0.07454 | D123: 174.7998
A124: 3406.7298 | B124: -0.02786 | C124: -0.07456 | D124: 176.2998
A125: 3408.2298 | B125: -0.02861 | C125: -0.07464 | D125: 177.7998
A126: 3409.6302 | B126: -0.0283 | C126: -0.07463 | D126: 179.2002
A127: 3411.03 | B127: -0.02823 | C127: -0.07471 | D127: 180.6
A128: 3412.4298 | B128: -0.02776 | C128: -0.07474 | D128: 181.9998
A129: 3413.8302 | B129: -0.0281 | C129: -0.07485 | D129: 183.4002
A130: 3415.3302 | B130: -0.02805 | C130: -0.07497 | D130: =A130-$A$1 -> 184.9002
A131: 3416.8302 | B131: -0.02797 | C131: -0.07503 | D131: 186.4002
A132: 3418.23 | B132: -0.02816 | C132: -0.07505 | D132: 187.8
A133: 3419.6304 | B133: -0.02812 | C133: -0.07515 | D133: 189.2004
A134: 3421.0296 | B134: -0.02796 | C134: -0.07516 | D134: 190.5996
A135: 3422.5296 | B135: -0.02792 | C135: -0.0752 | D135: 192.0996
A136: 3424.0296 | B136: -0.02837 | C136: -0.07526 | D136: 193.5996
A137: 3425.43 | B137: -0.02832 | C137: -0.07529 | D137: 195
A138: 3426.8292 | B138: -0.02819 | C138: -0.07529 | D138: 196.3992
A139: 3428.2296 | B139: -0.02852 | C139: -0.07536 | D139: 197.7996
A140: 3429.7296 | B140: -0.02822 | C140: -0.07553 | D140: 199.2996
A141: 3431.2296 | B141: -0.0277 | C141: -0.07569 | D141: 200.7996
A142: 3432.63 | B142: -0.02769 | C142: -0.07571 | D142: 202.2
A143: 3434.0298 | B143: -0.02812 | C143: -0.07582 | D143: 203.5998
A144: 3435.4302 | B144: -0.02813 | C144: -0.07584 | D144: 205.0002
A145: 3436.83 | B145: -0.02796 | C145: -0.07585 | D145: 206.4
A146: 3438.33 | B146: -0.02814 | C146: -0.07592 | D146: 207.9
A147: 3439.83 | B147: -0.02839 | C147: -0.07587 | D147: 209.4
A148: 3441.2298 | B148: -0.028 | C148: -0.07586 | D148: 210.7998
A149: 3442.6302 | B149: -0.02815 | C149: -0.07579 | D149: 212.2002
A150: 3444.03 | B150: -0.02823 | C150: -0.0758 | D150: 213.6
A151: 3445.53 | B151: -0.02841 | C151: -0.07585 | D151: 215.1
A152: 3447.03 | B152: -0.02827 | C152: -0.07584 | D152: 216.6
A153: 3448.4298 | B153: -0.02816 | C153: -0.07588 | D153: 217.9998
A154: 3449.8302 | B154: -0.02804 | C154: -0.0759 | D154: 219.4002
A155: 3451.23 | B155: -0.02799 | C155: -0.07591 | D155: 220.8
A156: 3452.73 | B156: -0.02799 | C156: -0.07595 | D156: 222.3
A157: 3454.23 | B157: -0.02841 | C157: -0.07597 | D157: 223.8
A158: 3455.6304 | B158: -0.02821 | C158: -0.07603 | D158: 225.2004
A159: 3457.0296 | B159: -0.02792 | C159: -0.07608 | D159: 226.5996
A160: 3458.43 | B160: -0.02792 | C160: -0.07615 | D160: 228
A161: 3459.8292 | B161: -0.02742 | C161: -0.07627 | D161: 229.3992
A162: 3461.3292 | B162: -0.02786 | C162: -0.07636 | D162: 230.8992
A163: 3462.8292 | B163: -0.0279 | C163: -0.07644 | D163: 232.3992
A164: 3464.2302 | B164: -0.02761 | C164: -0.07651 | D164: 233.8002
A165: 3465.63 | B165: -0.02759 | C165: -0.07653 | D165: 235.2
A166: 3467.0298 | B166: -0.02754 | C166: -0.07665 | D166: 236.5998
A167: 3468.5298 | B167: -0.02798 | C167: -0.07662 | D167: 238.0998
A168: 3470.0298 | B168: -0.02778 | C168: -0.07674 | D168: 239.5998
A169: 3471.4302 | B169: -0.02748 | C169: -0.07673 | D169: 241.0002
A170: 3472.83 | B170: -0.02766 | C170: -0.07674 | D170: 242.4
A171: 3474.2298 | B171: -0.02762 | C171: -0.07673 | D171: 243.7998
A172: 3475.7298 | B172: -0.02782 | C172: -0.07675 | D172: 245.2998
A173: 3477.2298 | B173: -0.02782 | C173: -0.07676 | D173: 246.7998
A174: 3478.6302 | B174: -0.02793 | C174: -0.0767 | D174: 248.2002
A175: 3480.03 | B175: -0.02789 | C175: -0.07674 | D175: 249.6
A176: 3481.4298 | B176: -0.02759 | C176: -0.07672 | D176: 250.9998
A177: 3482.8302 | B177: -0.02786 | C177: -0.07673 | D177: 252.4002
A178: 3484.3302 | B178: -0.02792 | C178: -0.07675 | D178: 253.9002
A179: 3485.8302 | B179: -0.02808 | C179: -0.07679 | D179: 255.4002
A180: 3487.23 | B180: -0.02795 | C180: -0.07677 | D180: 256.8
A181: 3488.6292 | B181: -0.02802 | C181: -0.0768 | D181: 258.1992
A182: 3490.0296 | B182: -0.02794 | C182: -0.07686 | D182: 259.5996
A183: 3491.5302 | B183: -0.02786 | C183: -0.0769 | D183: 261.1002
A184: 3493.0296 | B184: -0.0277 | C184: -0.07693 | D184: 262.5996
A185: 3494.43 | B185: -0.02829 | C185: -0.07693 | D185: 264
A186: 3495.8292 | B186: -0.02808 | C186: -0.07694 | D186: 265.3992
A187: 3497.2296 | B187: -0.02766 | C187: -0.07701 | D187: 266.7996
A188: 3498.7296 | B188: -0.02796 | C188: -0.07705 | D188: 268.2996
A189: 3500.2302 | B189: -0.02748 | C189: -0.07711 | D189: 269.8002
A190: 3501.63 | B190: -0.02765 | C190: -0.07715 | D190: 271.2
A191: 3503.0304 | B191: -0.02771 | C191: -0.0772 | D191: 272.6004
A192: 3504.4302 | B192: -0.02835 | C192: -0.07713 | D192: 274.0002
A193: 3505.83 | B193: -0.02794 | C193: -0.07707 | D193: 275.4
A194: 3507.33 | B194: -0.02777 | C194: -0.07704 | D194: =A194-$A$1 -> 276.9
A195: 3508.83 | B195: -0.02799 | C195: -0.07703 | D195: 278.4
A196: 3510.2298 | B196: -0.02797 | C196: -0.07704 | D196: 279.7998
A197: 3511.6302 | B197: -0.02808 | C197: -0.07705 | D197: 281.2002
A198: 3513.03 | B198: -0.02841 | C198: -0.07701 | D198: 282.6
A199: 3514.53 | B199: -0.02808 | C199: -0.07692 | D199: 284.1
A200: 3516.03 | B200: -0.02821 | C200: -0.07688 | D200: 285.6
... 18792 more rows
